bitfinex/quotes_SOLUSD_20220307
["timestamp","ask_amount","ask_price","bid_price","bid_amount"]
[1646691991279,2.83613526,82.339,82.229,122.35]
[1646691991480,6.0,82.324,82.231,122.1]
[1646691991680,2.83613526,82.339,82.241,122.1]
[1646691991881,6.0,82.323,82.242,0.468682]
[1646691992082,22.9256,82.348,82.243,122.1]
[1646691992281,22.9256,82.348,82.245,122.1]
[1646691992481,22.9256,82.348,82.247,122.1]
[1646691992682,22.9256,82.348,82.249,122.1]
[1646691992884,22.9256,82.348,82.251,122.1]
[1646691993083,18.2332,82.34,82.253,122.1]
[1646691993285,6.0,82.339,82.254,0.25]
[1646691993482,6.0,82.339,82.254,3.08613526]
[1646691993882,6.0,82.339,82.255,2.83613526]
[1646691994082,30.91552615,82.359,82.256,0.25]
[1646691994286,30.91552615,82.359,82.257,122.1]
[1646691994482,2.83613526,82.358,82.258,0.25]
[1646691994685,0.25,82.357,82.259,122.1]
[1646691994884,31.16552615,82.357,82.26,0.25]
[1646691995085,18.2293,82.35,82.261,122.1]
[1646691995285,0.25,82.349,82.262,0.25]
[1646691995484,0.25,82.349,82.262,3.08613526]
[1646691995685,0.25,82.349,82.263,2.83613526]
[1646691995885,0.25,82.349,82.264,0.25]
[1646691996088,30.91552615,82.348,82.263,2.83613526]
[1646691996289,18.2325,82.34,82.264,2.83613526]
[1646691996491,0.25,82.339,82.264,2.83613526]
[1646691996689,3.08613526,82.347,82.253,2.83613526]
[1646691996891,2.83613526,82.339,82.258,39.64]
[1646691997091,3.08613526,82.338,82.258,39.64]
[1646691997606,2.83613526,82.337,82.253,2.83613526]
[1646691997808,6.25,82.336,82.254,0.25]
[1646691998208,18.2344,82.33,82.254,0.25]
[1646691998408,0.25,82.329,82.254,0.25]
[1646691998610,3.08613526,82.329,82.254,0.25]
[1646691999210,3.08613526,82.329,82.254,6.25]
[1646691999610,3.08613526,82.329,82.255,122.1]
[1646691999809,3.08613526,82.329,82.256,0.25]
[1646692002211,3.08613526,82.329,82.254,0.25]
[1646692002611,2.83613526,82.328,82.254,0.25]
[1646692002812,0.25,82.327,82.254,0.25]
[1646692003614,0.25,82.327,82.255,122.1]
[1646692003815,0.25,82.327,82.256,6.25]
[1646692004217,0.25,82.327,82.254,6.0]
[1646692004415,18.2355,82.32,82.251,6.0]
[1646692005215,0.25,82.319,82.251,6.0]
[1646692005416,18.2355,82.32,82.251,6.0]
[1646692005616,18.2355,82.32,82.252,0.25]
[1646692005816,0.25,82.319,82.252,0.25]
[1646692006017,0.25,82.319,82.251,6.0]
[1646692006218,18.2355,82.32,82.251,6.0]
[1646692006818,0.25,82.319,82.251,6.0]
[1646692007217,0.25,82.319,82.252,0.25]
[1646692007818,6.25,82.319,82.25,0.25]
[1646692008718,0.25,82.319,82.25,0.25]
[1646692008922,6.25,82.319,82.25,0.25]
[1646692009617,0.25,82.319,82.25,0.25]
[1646692011219,6.25,82.319,82.25,0.25]
[1646692011422,0.25,82.319,82.25,0.25]
[1646692011719,18.2355,82.32,82.251,122.1]
[1646692012018,18.2355,82.32,82.253,122.1]
[1646692012218,18.2355,82.32,82.255,122.1]
[1646692012419,18.2355,82.32,82.256,6.25]
[1646692012622,4.46578591,82.328,82.257,122.1]
[1646692012820,6.25,82.327,82.259,122.1]
[1646692013021,6.25,82.327,82.261,122.1]
[1646692013220,6.25,82.327,82.263,122.1]
[1646692013421,6.25,82.327,82.264,0.25]
[1646692014625,6.25,82.327,82.262,0.25]
[1646692017629,6.25,82.327,82.263,122.1]
[1646692017828,6.25,82.327,82.264,0.25]
[1646692018029,1.62965065,82.323,82.264,0.25]
[1646692018229,0.25,82.322,82.264,0.25]
[1646692019630,0.25,82.323,82.264,0.25]
[1646692020031,0.25,82.323,82.263,6.25]
[1646692021431,1.62965065,82.322,82.263,6.25]
[1646692021635,1.62965065,82.32,82.263,6.25]
[1646692021833,1.62965065,82.319,82.263,6.25]
[1646692022933,1.62965065,82.32,82.263,6.25]
[1646692023132,1.62965065,82.32,82.263,0.25]
[1646692023533,1.62965065,82.32,82.263,6.25]
[1646692023835,1.62965065,82.319,82.263,6.25]
[1646692025234,1.62965065,82.32,82.263,6.25]
[1646692025438,1.62965065,82.32,82.263,6.28]
[1646692025636,1.62965065,82.319,82.263,6.28]
[1646692026839,1.62965065,82.318,82.263,0.28]
[1646692027039,1.62965065,82.318,82.263,0.03]
[1646692028438,1.62965065,82.317,82.263,0.03]
[1646692028639,1.62965065,82.318,82.263,0.03]
[1646692029238,18.2378,82.31,82.263,0.03]
[1646692030443,18.2378,82.31,82.248,0.25]
[1646692030444,18.2378,82.31,82.248,0.28]
[1646692033948,1.62965065,82.307,82.248,0.03]
[1646692034148,1.62965065,82.303,82.248,0.03]
[1646692034348,18.2407,82.3,82.248,0.03]
[1646692035048,0.25,82.299,82.248,0.03]
[1646692035247,0.25,82.299,82.248,0.28]
[1646692035647,0.25,82.299,82.248,0.25]
[1646692038969,18.2407,82.3,82.248,0.25]
[1646692039971,1.62965065,82.31,82.248,0.25]
[1646692040169,1.62965065,82.313,82.248,6.49]
[1646692040368,1.62965065,82.318,82.25,18.44167391]
[1646692040570,1.62965065,82.318,82.252,0.23538871]
[1646692040769,1.62965065,82.322,82.252,0.25]
[1646692040970,1.62965065,82.322,82.253,0.21374062]
[1646692041169,1.62965065,82.323,82.254,122.1]
[1646692041469,1.62965065,82.323,82.26,18.2325]
[1646692041668,1.62965065,82.324,82.261,6.25]
[1646692041869,1.62965065,82.324,82.262,122.1]
[1646692042070,4.96588778,82.37,82.267,73.26]
[1646692042071,1.62965065,82.329,82.267,73.26]
[1646692042270,1.62965065,82.34,82.272,122.61791008]
[1646692042472,1.62965065,82.347,82.28,18.2194]
[1646692042670,1.62965065,82.347,82.283,0.52320645]
[1646692042869,1.62965065,82.361,82.285,0.52320645]
[1646692043070,1.62965065,82.362,82.287,0.52320645]
[1646692043270,1.62965065,82.362,82.289,0.52320645]
[1646692043569,1.62965065,82.364,82.301,122.1]
[1646692043871,1.62965065,82.367,82.302,29.8134]
[1646692044069,1.62965065,82.367,82.303,24.0897]
[1646692044269,1.62965065,82.367,82.304,6.25]
[1646692044469,1.62965065,82.368,82.304,6.25]
[1646692044669,1.62965065,82.366,82.304,6.25]
[1646692044872,1.62965065,82.366,82.304,128.35]
[1646692045072,1.62965065,82.367,82.304,128.35]
[1646692045272,1.62965065,82.367,82.304,6.25]
[1646692045671,1.62965065,82.366,82.304,6.25]
[1646692045972,1.62965065,82.37,82.304,6.25]
[1646692046177,1.62965065,82.372,82.304,6.25]
[1646692046373,1.62965065,82.374,82.304,6.25]
[1646692046574,6.0,82.373,82.304,6.25]
[1646692048073,6.0,82.373,82.311,122.1]
[1646692048275,6.0,82.372,82.313,122.1]
[1646692048473,1.62965065,82.376,82.314,151.8541]
[1646692048675,7.62965065,82.375,82.314,23.5041]
[1646692048874,6.0,82.375,82.315,6.25]
[1646692049091,1.62965065,82.379,82.315,6.25]
[1646692049276,6.0,82.378,82.315,6.25]
[1646692049475,6.0,82.377,82.315,0.25]
[1646692049677,1.62965065,82.38,82.315,0.25]
[1646692049875,6.0,82.376,82.315,0.25]
[1646692050077,1.62965065,82.38,82.315,0.25]
[1646692050676,1.62965065,82.381,82.315,0.25]
[1646692050878,0.25,82.38,82.315,0.25]
[1646692051677,0.25,82.38,82.314,23.5041]
[1646692052078,0.25,82.383,82.314,23.5041]
[1646692052979,0.25,82.383,82.314,145.6041]
[1646692053177,0.25,82.383,82.315,0.25]
[1646692053576,1.87965065,82.384,82.315,0.25]
[1646692053777,6.0,82.383,82.315,0.25]
[1646692053978,0.25,82.382,82.315,0.25]
[1646692055477,0.25,82.384,82.315,0.25]
[1646692056176,0.25,82.384,82.314,23.2541]
[1646692056877,18.2219,82.38,82.314,23.2541]
[1646692057879,18.2219,82.38,82.314,145.3541]
[1646692058482,18.2219,82.38,82.314,23.2541]
[1646692058684,18.2219,82.38,82.315,0.25]
[1646692060084,1.62965065,82.39,82.316,2.83613526]
[1646692060284,1.62965065,82.391,82.318,122.1]
[1646692060483,1.62965065,82.392,82.319,0.25]
[1646692060683,1.62965065,82.393,82.32,122.31770105]
[1646692060990,1.62965065,82.394,82.321,0.25]
[1646692061184,0.25,82.393,82.321,3.08613526]
[1646692061384,1.62965065,82.395,82.322,124.93613526]
[1646692061583,1.62965065,82.399,82.323,0.25]
[1646692061788,1.62965065,82.399,82.324,0.2470736]
[1646692061984,1.62965065,82.399,82.324,2.83613526]
[1646692062186,1.62965065,82.4,82.325,24.5946]
[1646692062386,1.62965065,82.4,82.325,27.43073526]
[1646692062585,1.62965065,82.4,82.33,18.2156]
[1646692062785,1.62965065,82.4,82.331,0.25]
[1646692062984,1.62965065,82.4,82.331,3.08613526]
[1646692063186,1.62965065,82.4,82.331,0.25]
[1646692063590,1.62965065,82.398,82.331,0.25]
[1646692063789,6.0,82.399,82.326,0.25]
[1646692063790,1.62965065,82.397,82.326,0.25]
[1646692064489,1.62965065,82.398,82.325,24.3446]
[1646692064688,27.96759183,82.389,82.325,24.3446]
[1646692064889,0.25,82.388,82.325,24.3446]
[1646692065788,0.25,82.388,82.326,0.25]
[1646692066791,1.62965065,82.382,82.326,0.25]
[1646692066992,0.25,82.381,82.326,0.25]
[1646692067395,6.25,82.381,82.326,0.25]
[1646692067592,18.222,82.38,82.326,0.25]
[1646692068295,1.87965065,82.379,82.326,0.25]
[1646692068493,1.62965065,82.378,82.326,0.25]
[1646692068697,0.25,82.377,82.326,0.25]
[1646692068893,34.86703215,82.376,82.325,24.3446]
[1646692069094,18.2242,82.37,82.325,24.3446]
[1646692069696,0.25,82.369,82.325,24.3446]
[1646692069894,30.81136011,82.358,82.325,24.3446]
[1646692070097,1.62965065,82.357,82.325,24.3446]
[1646692070994,30.81136011,82.358,82.325,24.3446]
[1646692071199,30.81136011,82.358,82.303,24.0897]
[1646692071200,1.62965065,82.357,82.303,24.0897]
[1646692071396,30.81136011,82.358,82.304,6.25]
[1646692071397,1.62965065,82.356,82.304,6.25]
[1646692071595,1.62965065,82.355,82.304,6.25]
[1646692071795,1.62965065,82.357,82.304,6.25]
[1646692072195,18.2283,82.35,82.304,0.25]
[1646692072395,0.25,82.349,82.282,27.71530765]
[1646692072595,1.62965065,82.345,82.282,27.71530765]
[1646692072797,0.25,82.344,82.282,27.71530765]
[1646692073401,1.62965065,82.345,82.282,27.71530765]
[1646692073600,1.62965065,82.346,82.282,27.71530765]
[1646692073802,1.62965065,82.345,82.283,0.25]
[1646692074002,1.62965065,82.343,82.283,0.25]
[1646692074198,18.2308,82.34,82.283,0.25]
[1646692074801,6.0,82.339,82.278,0.25]
[1646692075200,0.25,82.338,82.278,0.25]
[1646692075399,18.2327,82.33,82.277,23.8801]
[1646692075600,30.52232831,82.329,82.277,23.8801]
[1646692076701,18.2349,82.32,82.278,0.25]
[1646692076901,18.2349,82.32,82.252,6.25]
[1646692077104,18.2349,82.32,82.252,0.25]
[1646692077303,18.2349,82.32,82.248,0.25]
[1646692079606,18.2349,82.32,82.249,6.075]
[1646692079807,18.2349,82.32,82.25,6.25]
[1646692080226,18.2349,82.32,82.25,0.25]
[1646692080827,18.2349,82.32,82.245,6.075]
[1646692080828,18.2349,82.32,82.246,6.25]
[1646692081028,18.2349,82.32,82.247,6.075]
[1646692081227,18.2349,82.32,82.248,6.25]
[1646692081631,18.2349,82.32,82.249,24.3138]
[1646692081828,18.2349,82.32,82.25,6.25]
[1646692082029,18.2349,82.32,82.251,6.075]
[1646692082331,18.2349,82.32,82.252,6.25]
[1646692082530,18.2349,82.32,82.253,6.075]
[1646692082728,18.2349,82.32,82.254,6.25]
[1646692082929,18.2349,82.32,82.255,6.075]
[1646692083131,18.2349,82.32,82.256,6.25]
[1646692083431,18.2349,82.32,82.257,6.075]
[1646692083630,18.2349,82.32,82.258,6.25]
[1646692083831,18.2349,82.32,82.259,6.075]
[1646692084032,18.2349,82.32,82.26,6.25]
[1646692084233,18.2349,82.32,82.261,6.075]
[1646692084431,18.2349,82.32,82.262,6.25]
[1646692084630,18.2349,82.32,82.263,6.075]
[1646692084830,18.2349,82.32,82.264,6.25]
[1646692085331,18.2349,82.32,82.264,0.25]
[1646692085731,18.2349,82.32,82.253,6.25]
[1646692085934,18.2349,82.32,82.254,6.075]
[1646692086133,18.2349,82.32,82.255,6.25]
[1646692086333,18.2349,82.32,82.256,6.075]
[1646692086534,18.2349,82.32,82.257,6.25]
[1646692086737,18.2349,82.32,82.258,6.075]
[1646692086933,18.2349,82.32,82.259,6.25]
[1646692087739,18.2349,82.32,82.259,0.25]
[1646692088137,6.0,82.319,82.251,0.25]
[1646692090142,6.0,82.319,82.22,15.53306987]
[1646692090342,0.28621133,82.318,82.221,6.25]
[1646692090543,60.7846,82.34,82.234,2.83613526]
[1646692090843,18.2332,82.33,82.235,6.0]
[1646692091042,0.25,82.329,82.235,6.0]
[1646692091241,0.25,82.329,82.241,122.1]
[1646692091443,0.25,82.329,82.24,18.2357]
[1646692091643,0.25,82.329,82.241,122.1]
[1646692091853,18.2353,82.32,82.241,122.1]
[1646692092044,0.25,82.319,82.243,122.1]
[1646692092245,23.7446,82.319,82.25,18.2358]
[1646692092444,23.7446,82.319,82.251,6.25]
[1646692093044,23.7446,82.319,82.252,24.1311]
[1646692093245,23.7446,82.319,82.253,6.25]
[1646692094048,18.2372,82.31,82.253,6.0]
[1646692094246,0.25,82.309,82.253,6.0]
[1646692094448,122.35,82.309,82.253,6.0]
[1646692094644,122.35,82.309,82.243,6.0]
[1646692094845,30.2646,82.308,82.243,6.0]
[1646692095444,0.25,82.307,82.243,6.0]
[1646692096245,24.1876,82.308,82.244,0.25]
[1646692097648,24.1876,82.308,82.25,18.2358]
[1646692097852,24.1876,82.308,82.251,6.25]
[1646692100455,23.8128,82.318,82.251,6.25]
[1646692100654,23.8128,82.318,82.261,122.1]
[1646692100957,23.8128,82.318,82.263,0.41980738]
[1646692101558,23.8128,82.318,82.262,6.25]
[1646692101957,23.8128,82.318,82.262,0.25]
[1646692102160,23.8128,82.318,82.27,18.2317]
[1646692102357,23.8128,82.318,82.271,6.25]
[1646692102558,18.2328,82.33,82.271,6.25]
[1646692102758,18.2328,82.33,82.272,0.24332719]
[1646692103259,24.75715065,82.334,82.272,0.24332719]
[1646692103658,23.1275,82.334,82.28,18.2301]
[1646692103860,23.1275,82.334,82.281,0.25]
[1646692104657,6.074,82.349,82.281,0.25]
[1646692104658,1.62965065,82.338,82.281,0.25]
[1646692104860,1.62965065,82.339,82.282,0.23705768]
[1646692105058,24.7351,82.348,82.281,0.25]
[1646692105059,1.62965065,82.337,82.281,0.25]
[1646692105262,1.62965065,82.338,82.281,0.25]
[1646692105661,1.62965065,82.339,82.281,0.25]
[1646692105863,1.62965065,82.34,82.281,0.25]
[1646692106163,19.86015065,82.34,82.281,0.25]
[1646692107171,1.62965065,82.339,82.281,0.25]
[1646692107374,6.074,82.338,82.281,0.25]
[1646692107571,6.074,82.339,82.281,0.25]
[1646692107771,1.62965065,82.338,82.281,0.25]
[1646692107972,6.074,82.337,82.281,0.25]
[1646692108175,6.074,82.338,82.281,0.25]
[1646692108374,6.074,82.339,82.281,0.25]
[1646692108775,6.0,82.338,82.281,0.25]
[1646692108978,6.074,82.337,82.281,0.25]
[1646692109179,6.074,82.339,82.281,0.25]
[1646692112782,6.074,82.339,82.282,0.26123707]
[1646692112979,18.2306,82.34,82.282,0.26123707]
[1646692113379,18.2306,82.34,82.281,0.25]
[1646692114793,1.62965065,82.346,82.29,18.228]
[1646692114993,6.0,82.345,82.291,0.25]
[1646692115195,6.0,82.346,82.291,0.25]
[1646692115393,6.0,82.347,82.291,0.25]
[1646692115594,7.62965065,82.347,82.291,0.25]
[1646692115795,6.0,82.347,82.291,0.25]
[1646692115992,24.7351,82.348,82.292,6.073]
[1646692116193,6.0,82.347,82.293,0.25]
[1646692116393,24.7351,82.348,82.294,6.073]
[1646692116693,6.0,82.347,82.295,0.25]
[1646692116894,24.7351,82.348,82.295,0.25]
[1646692117699,24.7351,82.348,82.292,0.25]
[1646692117897,24.7351,82.348,82.293,6.073]
[1646692118097,24.7351,82.348,82.294,0.25]
[1646692119299,18.2284,82.35,82.291,0.25]
[1646692119503,122.1,82.387,82.291,0.25]
[1646692119504,6.073,82.354,82.3,18.2256]
[1646692119701,6.0,82.353,82.301,24.44261506]
[1646692119898,6.0,82.354,82.301,24.44261506]
[1646692120098,6.0,82.355,82.301,24.44261506]
[1646692120302,6.0,82.357,82.301,24.44261506]
[1646692120501,6.073,82.356,82.301,24.0273]
[1646692120699,6.0,82.355,82.301,24.0273]
[1646692120900,6.073,82.354,82.301,24.0273]
[1646692121106,6.073,82.359,82.301,24.0273]
[1646692121600,6.0,82.358,82.301,24.0273]
[1646692121801,6.073,82.357,82.301,24.0273]
[1646692122002,6.0,82.356,82.301,24.0273]
[1646692122202,18.2283,82.35,82.301,24.0273]
[1646692122502,6.34258764,82.355,82.301,24.0273]
[1646692122703,6.0,82.354,82.301,24.0273]
[1646692122904,6.34258764,82.355,82.301,24.0273]
[1646692123202,6.0,82.354,82.301,24.0273]
[1646692123414,6.073,82.353,82.301,24.0273]
[1646692123601,6.0,82.352,82.301,24.0273]
[1646692123802,6.073,82.351,82.301,24.0273]
[1646692124006,6.073,82.351,82.299,18.3923]
[1646692124202,18.2282,82.35,82.299,18.3923]
[1646692124403,6.073,82.349,82.299,18.3923]
[1646692125206,6.073,82.349,82.3,0.25]
[1646692125606,6.073,82.349,82.3,140.5757]
[1646692125811,6.34258764,82.355,82.301,0.30298286]
[1646692126009,34.1912453,82.379,82.303,0.33576959]
[1646692126010,1.62965065,82.369,82.303,0.33576959]
[1646692126208,7.62965065,82.368,82.303,23.60716959]
[1646692126408,7.62965065,82.368,82.304,122.1]
[1646692126608,7.62965065,82.368,82.305,0.58576959]
[1646692126808,7.62965065,82.368,82.311,122.1]
[1646692127009,7.62965065,82.368,82.313,0.26725179]
[1646692127210,6.0,82.368,82.313,0.26725179]
[1646692128815,1.62965065,82.366,82.312,0.25]
[1646692129015,1.62965065,82.367,82.312,0.25]
[1646692129213,1.62965065,82.364,82.312,0.25]
[1646692129414,1.62965065,82.365,82.32,18.2216]
[1646692129616,1.62965065,82.367,82.321,0.25]
[1646692129916,6.0,82.366,82.321,0.25]
[1646692130217,6.0,82.367,82.305,6.072]
[1646692130414,1.62965065,82.365,82.311,122.1]
[1646692130619,6.0,82.364,82.312,6.072]
[1646692130813,6.0,82.364,82.311,122.1]
[1646692131014,5.5,82.364,82.148,45.17313042]
[1646692131215,5.5,82.364,82.291,6.0]
[1646692131421,1.62965065,82.365,82.292,6.073]
[1646692131617,1.62965065,82.361,82.293,6.25]
[1646692131819,1.87965065,82.36,82.294,6.073]
[1646692132017,1.62965065,82.36,82.295,6.25]
[1646692132217,7.62965065,82.359,82.296,6.073]
[1646692132419,7.62965065,82.359,82.297,6.25]
[1646692132637,7.62965065,82.359,82.3,18.2257]
[1646692132818,6.0,82.359,82.301,0.25]
[1646692133017,7.62965065,82.359,82.301,0.25]
[1646692133224,23.8533,82.358,82.301,0.25]
[1646692133618,25.48295065,82.358,82.302,6.073]
[1646692133818,25.48295065,82.358,82.303,0.25]
[1646692134018,25.48295065,82.358,82.304,6.073]
[1646692134220,25.48295065,82.358,82.305,0.25]
[1646692134421,1.62965065,82.357,82.305,0.25]
[1646692134621,25.48295065,82.358,82.305,0.25]
[1646692134820,1.62965065,82.357,82.305,0.25]
[1646692135019,1.62965065,82.356,82.305,0.25]
[1646692135219,1.62965065,82.357,82.302,0.25]
[1646692135420,1.62965065,82.355,82.302,0.25]
[1646692135620,1.62965065,82.355,82.301,0.25]
[1646692136021,18.2285,82.35,82.301,0.25]
[1646692136224,18.2285,82.35,82.298,0.25]
[1646692136522,18.2285,82.35,82.295,0.25]
[1646692137622,1.62965065,82.354,82.295,0.25]
[1646692137823,1.62965065,82.355,82.295,0.25]
[1646692138222,1.62965065,82.354,82.3,18.2261]
[1646692138426,1.62965065,82.356,82.301,0.25]
[1646692138626,1.62965065,82.354,82.302,0.26444429]
[1646692138822,1.62965065,82.354,82.301,0.25]
[1646692139227,23.8533,82.358,82.301,0.25]
[1646692139228,1.62965065,82.353,82.301,0.25]
[1646692139427,18.2285,82.35,82.301,0.25]
[1646692139626,18.2285,82.35,82.296,6.25]
[1646692139827,18.2285,82.35,82.297,6.0]
[1646692140028,18.2285,82.35,82.298,6.323]
[1646692140249,18.2285,82.35,82.299,6.25]
[1646692140842,18.2285,82.35,82.299,0.25]
[1646692141243,19.85815065,82.35,82.299,0.25]
[1646692141444,1.62965065,82.349,82.296,6.323]
[1646692141643,1.62965065,82.348,82.297,6.0]
[1646692141844,1.62965065,82.349,82.298,6.323]
[1646692142043,1.62965065,82.349,82.299,6.0]
[1646692142244,6.0,82.348,82.3,0.25]
[1646692142443,1.62965065,82.349,82.3,0.25]
[1646692142843,1.62965065,82.348,82.3,0.25]
[1646692143042,1.62965065,82.349,82.3,0.25]
[1646692143243,26.35485065,82.348,82.293,0.25]
[1646692144044,1.62965065,82.347,82.293,0.25]
[1646692144244,1.62965065,82.346,82.293,0.25]
[1646692145444,1.62965065,82.347,82.293,0.25]
[1646692147748,1.62965065,82.346,82.293,0.25]
[1646692148151,1.62965065,82.346,82.292,0.25]
[1646692150154,1.62965065,82.345,82.29,18.2279]
[1646692150357,18.2307,82.34,82.283,6.073]
[1646692150553,0.18543258,82.338,82.283,6.073]
[1646692150756,1.62965065,82.337,82.283,6.073]
[1646692151255,1.62965065,82.337,82.273,22.8241]
[1646692151453,1.62965065,82.333,82.273,22.8241]
[1646692151658,1.62965065,82.332,82.274,0.25]
[1646692151856,1.62965065,82.331,82.274,0.25]
[1646692152054,1.62965065,82.333,82.274,0.25]
[1646692152456,6.0,82.332,82.25,29.0741]
[1646692152658,18.233,82.33,82.26,18.2341]
[1646692152855,18.233,82.33,82.261,0.25]
[1646692153255,6.0,82.329,82.261,0.25]
[1646692153858,12.075,82.329,82.261,0.25]
[1646692154057,12.075,82.329,82.26,18.2341]
[1646692154260,18.2351,82.32,82.26,18.2341]
[1646692154457,24.076,82.319,82.26,18.2341]
[1646692154658,6.0,82.318,82.26,18.2341]
[1646692155259,0.25,82.317,82.26,18.2341]
[1646692155461,18.2374,82.31,82.25,47.0604]
[1646692155660,0.25,82.309,82.251,0.25]
[1646692156266,24.076,82.309,82.251,0.25]
[1646692157062,24.076,82.309,82.25,28.8241]
[1646692157262,18.2394,82.3,82.25,6.0]
[1646692157562,23.5876,82.299,82.249,6.0]
[1646692157761,23.5876,82.299,82.243,6.0]
[1646692157961,23.5876,82.299,82.244,0.25]
[1646692158563,6.0,82.298,82.244,0.25]
[1646692158761,0.25,82.297,82.244,0.25]
[1646692159862,0.25,82.297,82.243,6.0]
[1646692160264,0.25,82.297,82.23,18.2414]
[1646692160564,0.25,82.297,82.244,5.66819191]
[1646692161363,0.25,82.297,82.245,0.25]
[1646692161562,6.077,82.296,82.245,0.25]
[1646692161763,6.25,82.295,82.245,0.25]
[1646692162364,0.25,82.295,82.245,0.25]
[1646692162863,0.25,82.296,82.245,0.25]
[1646692163464,0.25,82.297,82.245,0.25]
[1646692164365,0.25,82.297,82.245,0.24999996]
[1646692164568,0.25,82.297,82.246,5.66819191]
[1646692166268,0.25,82.297,82.247,0.25]
[1646692166468,18.2415,82.29,82.247,0.25]
[1646692166667,6.25,82.289,82.247,0.25]
[1646692167267,0.25,82.289,82.247,0.25]
[1646692167669,0.25,82.289,82.248,5.66819191]
[1646692170472,6.25,82.298,82.248,5.66819191]
[1646692171070,6.25,82.298,82.249,0.28568632]
[1646692171471,0.25,82.298,82.25,5.66819191]
[1646692171871,6.25,82.298,82.251,6.0]
[1646692172574,0.25,82.298,82.251,6.0]
[1646692173374,0.25,82.298,82.252,0.33531334]
[1646692173672,6.327,82.298,82.251,6.0]
[1646692174572,6.327,82.298,82.252,5.66819191]
[1646692174771,6.327,82.298,82.253,6.0]
[1646692175375,6.327,82.298,82.254,0.25]
[1646692175573,0.25,82.298,82.254,0.25]
[1646692177577,0.25,82.298,82.255,5.66819191]
[1646692177775,23.3376,82.299,82.256,6.0]
[1646692177976,0.25,82.298,82.257,0.25]
[1646692178379,23.3376,82.299,82.257,0.25]
[1646692178580,23.3376,82.299,82.258,0.43227248]
[1646692178983,23.3376,82.299,82.256,6.0]
[1646692179683,0.25,82.298,82.256,6.0]
[1646692180286,0.25,82.298,82.257,0.25]
[1646692180491,23.3376,82.299,82.257,0.25]
[1646692181289,23.3376,82.299,82.257,5.91819191]
[1646692181506,23.3376,82.299,82.258,6.0]
[1646692181702,23.3376,82.299,82.259,0.25]
[1646692183103,0.25,82.298,82.259,0.25]
[1646692183605,0.25,82.298,82.26,5.66819191]
[1646692183805,0.25,82.298,82.261,6.25]
[1646692184607,1.87965065,82.298,82.261,6.0]
[1646692184808,1.62965065,82.295,82.261,6.0]
[1646692185107,0.25,82.294,82.261,6.0]
[1646692185313,1.62965065,82.293,82.261,6.0]
[1646692185507,1.87965065,82.294,82.261,6.0]
[1646692185711,1.87965065,82.294,82.262,0.25]
[1646692185907,1.87965065,82.294,82.261,6.0]
[1646692186108,1.62965065,82.291,82.261,6.0]
[1646692186307,1.87965065,82.29,82.261,6.0]